[Event "Torneo Benidorm Gran Hotel Bali 2022"]
[Site "Benidorm, Spain"]
[Date "2022.12.06"]
[Round "4.1"]
[White "Mingarro Carceller, Sergi"]
[Black "Aguilera Lopez, Alejandro"]
[Result "0-1"]
[ECO "B45"]
[WhiteElo "2330"]
[BlackElo "2184"]
[PlyCount "116"]
[EventDate "2022.12.03"]
[EventType "swiss"]
[EventRounds "9"]
[SourceTitle "Ajedrez en Madrid"]
[Source "lmi"]
[SourceDate "2022.12.03"]
[SourceVersion "1"]
[SourceVersionDate "2022.12.10"]
[SourceQuality "1"]
[TimeControl "90+30"]
[WhiteClock "0:09:47"]
[BlackClock "0:12:10"]

1. e4 {[%emt 0:00:00]} c5 {[%emt 0:00:00]} 2. Nf3 {[%emt 0:00:00]} e6 {[%emt 0:00:00]} 3. d4 {[%emt 0:00:00]} cxd4 {[%emt 0:00:00]} 4. Nxd4 {[%emt 0:00:00]} Nf6 {[%emt 0:00:00]} 5. Nc3 {[%emt 0:00:00]} Nc6 {[%emt 0:00:00]} 6. Nxc6 {[%emt 0:00:00]} bxc6 {[%emt 0:00:00]} 7. e5 {[%emt 0:00:00]} Nd5 {[%emt 0:00:00]} 8. Ne4 {[%emt 0:00:00]} Qc7 {[%emt 0:00:00]} 9. f4 {[%emt 0:00:00]} Qb6 {[%emt 0:00:00]} 10. c4 {[%emt 0:00:00]} Bb4+ {[%emt 0:00:00]} 11. Ke2 {[%emt 0:00:00]} f5 {[%emt 0:00:00]} 12. Nf2 {[%emt 0:00:00]} Ba6 {[%emt 0:00:00]} 13. Kf3 {[%emt 0:00:00]} Ne7 {[%emt 0:00:00]} 14. Be3 {[%emt 0:00:00]} Bc5 {[%emt 0:00:00]} 15. Bxc5 {[%emt 0:00:00]} Qxc5 {[%emt 0:00:00]} 16. Qd6 {[%emt 0:00:00]} Qxd6 {[%emt 0:00:00]} 17. exd6 {[%emt 0:00:00]} Ng8 {[%emt 0:00:00]} 18. c5 {[%emt 0:00:00]} Bxf1 {[%emt 0:00:00]} 19. Rhxf1 {[%emt 0:00:00]} Rb8 {[%emt 0:00:00]} 20. Rfc1 {[%emt 0:00:00]} Nf6 {[%emt 0:00:00]} 21. Nd3 {[%emt 0:00:00]} O-O {[%emt 0:00:00]} 22. Rc4 {[%emt 0:00:00]} Rb7 {[%emt 0:00:00]} 23. Rac1 {[%emt 0:00:00]} Ne4 {[%emt 0:00:00]} 24. Ke3 {[%emt 0:00:00]} h6 {[%emt 0:00:00]} 25. b3 {[%emt 0:00:00]} g5 {[%emt 0:00:00]} 26. g4 {[%emt 0:00:00]} Nf6 {[%emt 0:00:00]} 27. gxf5 {[%emt 0:00:00]} exf5 {[%emt 0:00:00]} 28. fxg5 {[%emt 0:00:00]} hxg5 {[%emt 0:00:00]} 29. Rg1 {[%emt 0:00:00]} Re8+ {[%emt 0:00:00]} 30. Kd2 {[%emt 0:00:00]} Kf7 {[%emt 0:00:00]} 31. Kc2 {[%emt 0:00:00]} Re2+ {[%emt 0:00:00]} 32. Kb1 {[%emt 0:00:00]} Ne4 {[%emt 0:00:00]} 33. Rc2 {[%emt 0:00:00]} Rxc2 {[%emt 0:00:00]} 34. Kxc2 {[%emt 0:00:00]} Kf6 {[%emt 0:00:00]} 35. b4 {[%emt 0:00:00]} Rb8 {[%emt 0:00:00]} 36. Rg2 {[%emt 0:00:34]} Rh8 {[%emt 0:00:00]} 37. Kb3 {[%emt 0:01:34]} f4 {[%emt 0:00:00]} 38. Kc4 {[%emt 0:01:55]} f3 {[%emt 0:00:00]} 39. Rc2 {[%emt 0:02:38]} Kf5 {[%emt 0:00:00]} 40. Kd4 {[%emt 0:01:23]} Nf6 {[%emt 0:01:11]} 41. b5 {[%emt 0:03:01]} cxb5 {[%emt 0:01:10]} 42. c6 {[%emt 0:00:26]} dxc6 {[%emt 0:00:51]} 43. Rc5+ {[%emt 0:01:41]} Ke6 {[%emt 0:01:29]} 44. Rxg5 {[%emt 0:00:14]} Rxh2 {[%emt 0:01:32]} 45. Re5+ {[%emt 0:00:46]} Kxd6 {[%emt 0:00:19]} 46. Rf5 {[%emt 0:00:03]} Nd5 {[%emt 0:00:39]} 47. Ke4 {[%emt 0:00:50]} Re2+ {[%emt 0:01:13]} 48. Kd4 {[%emt 0:01:18]} Rxa2 {[%emt 0:00:28]} 49. Ke4 {[%emt 0:01:08]} Re2+ {[%emt 0:01:33]} 50. Kd4 {[%emt 0:00:04]} Rh2 {[%emt 0:01:17]} 51. Ke4 {[%emt 0:00:18]} a5 {[%emt 0:00:31]} 52. Rxf3 {[%emt 0:00:23]} Rh4+ {[%emt 0:00:44]} 53. Kf5 {[%emt 0:00:09]} a4 {[%emt 0:01:22]} 54. Nf2 {[%emt 0:00:21]} Ne7+ {[%emt 0:01:05]} 55. Kg5 {[%emt 0:00:19]} Rd4 {[%emt 0:00:14]} 56. Rf6+ {[%emt 0:00:27]} Kd7 {[%emt 0:02:12]} 57. Ng4 {[%emt 0:00:55]} a3 {[%emt 0:00:18]} 58. Ne5+ {[%emt 0:00:16]} Kc7 {[%emt 0:00:12]} 0-1

[Event "Torneo Benidorm Gran Hotel Bali 2022"]
[Site "Benidorm, Spain"]
[Date "2022.12.06"]
[Round "4.2"]
[White "Schaffert, Walter"]
[Black "Davtyan, David Arm."]
[Result "0-1"]
[ECO "B10"]
[WhiteElo "2037"]
[BlackElo "2329"]
[PlyCount "82"]
[EventDate "2022.12.03"]
[EventType "swiss"]
[EventRounds "9"]
[SourceTitle "Ajedrez en Madrid"]
[Source "lmi"]
[SourceDate "2022.12.03"]
[SourceVersion "1"]
[SourceVersionDate "2022.12.10"]
[SourceQuality "1"]
[TimeControl "90+30"]
[WhiteClock "0:01:06"]
[BlackClock "0:18:42"]

1. e4 {[%emt 0:00:00]} c6 {[%emt 0:00:00]} 2. Be2 {[%emt 0:00:00]} d5 {[%emt 0:00:00]} 3. d3 {[%emt 0:00:00]} e5 {[%emt 0:00:00]} 4. f4 {[%emt 0:00:00]} dxe4 {[%emt 0:00:00]} 5. dxe4 {[%emt 0:00:00]} Qxd1+ {[%emt 0:00:00]} 6. Bxd1 {[%emt 0:00:00]} exf4 {[%emt 0:00:00]} 7. Bxf4 {[%emt 0:00:00]} Ne7 {[%emt 0:00:00]} 8. Nf3 {[%emt 0:00:00]} Ng6 {[%emt 0:00:00]} 9. Be3 {[%emt 0:00:00]} Nd7 {[%emt 0:00:00]} 10. Nbd2 {[%emt 0:00:00]} Bc5 {[%emt 0:00:00]} 11. Bxc5 {[%emt 0:00:00]} Nxc5 {[%emt 0:00:00]} 12. O-O {[%emt 0:00:00]} Be6 {[%emt 0:00:00]} 13. b4 {[%emt 0:00:00]} Nd7 {[%emt 0:00:00]} 14. Ng5 {[%emt 0:00:00]} Nde5 {[%emt 0:00:00]} 15. Nxe6 {[%emt 0:00:00]} fxe6 {[%emt 0:00:00]} 16. Be2 {[%emt 0:00:00]} Ke7 {[%emt 0:00:00]} 17. Nb3 {[%emt 0:00:00]} Nd7 {[%emt 0:00:00]} 18. a4 {[%emt 0:00:00]} Nge5 {[%emt 0:00:00]} 19. a5 {[%emt 0:00:00]} Rhd8 {[%emt 0:00:00]} 20. a6 {[%emt 0:00:00]} b6 {[%emt 0:00:00]} 21. h3 {[%emt 0:00:00]} Rf8 {[%emt 0:00:00]} 22. g3 {[%emt 0:00:00]} Rxf1+ {[%emt 0:00:00]} 23. Rxf1 {[%emt 0:00:00]} g5 {[%emt 0:00:00]} 24. Kg2 {[%emt 0:00:00]} Nf6 {[%emt 0:00:00]} 25. Re1 {[%emt 0:00:00]} Rd8 {[%emt 0:00:00]} 26. Bf1 {[%emt 0:00:00]} h5 {[%emt 0:00:00]} 27. Be2 {[%emt 0:01:37]} h4 {[%emt 0:00:00]} 28. g4 {[%emt 0:02:23]} Ng6 {[%emt 0:00:00]} 29. Bf1 {[%emt 0:02:11]} Nf4+ {[%emt 0:00:00]} 30. Kf3 {[%emt 0:00:37]} Nd7 {[%emt 0:00:00]} 31. Ke3 {[%emt 0:01:51]} Ne5 {[%emt 0:00:00]} 32. Rb1 {[%emt 0:01:03]} Rf8 {[%emt 0:00:00]} 33. Nd4 {[%emt 0:01:16]} Kd6 {[%emt 0:00:00]} 34. Rd1 {[%emt 0:01:16]} Kc7 {[%emt 0:00:00]} 35. Rb1 {[%emt 0:01:01]} b5 {[%emt 0:00:00]} 36. Ra1 {[%emt 0:01:43]} Kb6 {[%emt 0:00:22]} 37. Ra3 {[%emt 0:00:50]} Nxh3 {[%emt 0:00:43]} 38. Ke2 {[%emt 0:03:54]} Ng1+ {[%emt 0:01:13]} 39. Ke1 {[%emt 0:00:22]} Ngf3+ {[%emt 0:00:14]} 40. Nxf3 {[%emt 0:00:16]} Nxf3+ {[%emt 0:00:08]} 41. Kd1 {[%emt 0:00:34]} Ne5 {[%emt 0:00:38]} 0-1

[Event "Torneo Benidorm Gran Hotel Bali 2022"]
[Site "Benidorm, Spain"]
[Date "2022.12.06"]
[Round "4.3"]
[White "Remolar Gallen, Jose"]
[Black "Rodriguez Redondo, Adhara"]
[Result "1/2-1/2"]
[ECO "A17"]
[WhiteElo "2305"]
[BlackElo "2057"]
[PlyCount "101"]
[EventDate "2022.12.03"]
[EventType "swiss"]
[EventRounds "9"]
[SourceTitle "Ajedrez en Madrid"]
[Source "lmi"]
[SourceDate "2022.12.03"]
[SourceVersion "1"]
[SourceVersionDate "2022.12.10"]
[SourceQuality "1"]
[TimeControl "90+30"]
[WhiteClock "0:19:20"]
[BlackClock "0:00:53"]

1. c4 {[%emt 0:00:00]} e6 {[%emt 0:00:00]} 2. Nf3 {[%emt 0:00:00]} d5 {[%emt 0:00:00]} 3. e3 {[%emt 0:00:00]} Nf6 {[%emt 0:00:00]} 4. Nc3 {[%emt 0:00:00]} Bd6 {[%emt 0:00:00]} 5. b3 {[%emt 0:00:00]} b6 {[%emt 0:00:00]} 6. Bb2 {[%emt 0:00:00]} Bb7 {[%emt 0:00:00]} 7. cxd5 {[%emt 0:00:00]} exd5 {[%emt 0:00:00]} 8. Be2 {[%emt 0:00:00]} O-O {[%emt 0:00:00]} 9. Nd4 {[%emt 0:00:00]} Re8 {[%emt 0:00:00]} 10. O-O {[%emt 0:00:00]} Bf8 {[%emt 0:00:00]} 11. Nf5 {[%emt 0:00:00]} Nbd7 {[%emt 0:00:00]} 12. d4 {[%emt 0:00:00]} g6 {[%emt 0:00:00]} 13. Ng3 {[%emt 0:00:00]} h5 {[%emt 0:00:00]} 14. Bf3 {[%emt 0:00:00]} Bg7 {[%emt 0:00:00]} 15. Rc1 {[%emt 0:00:00]} Nf8 {[%emt 0:00:00]} 16. Rc2 {[%emt 0:00:00]} N8h7 {[%emt 0:00:00]} 17. Nge2 {[%emt 0:00:00]} Ng5 {[%emt 0:00:00]} 18. Nf4 {[%emt 0:00:00]} Nxf3+ {[%emt 0:00:00]} 19. Qxf3 {[%emt 0:00:00]} Ne4 {[%emt 0:00:00]} 20. Rfc1 {[%emt 0:00:00]} c6 {[%emt 0:00:00]} 21. Nxe4 {[%emt 0:00:00]} dxe4 {[%emt 0:00:00]} 22. Qg3 {[%emt 0:00:00]} h4 {[%emt 0:00:00]} 23. Qg4 {[%emt 0:00:00]} Bc8 {[%emt 0:00:00]} 24. Qd1 {[%emt 0:00:00]} Bb7 {[%emt 0:00:00]} 25. d5 {[%emt 0:00:00]} Bxb2 {[%emt 0:00:23]} 26. Rxb2 {[%emt 0:00:00]} Qf6 {[%emt 0:01:04]} 27. Rd2 {[%emt 0:00:00]} cxd5 {[%emt 0:00:33]} 28. Rc7 {[%emt 0:00:00]} Re7 {[%emt 0:01:49]} 29. Rxe7 {[%emt 0:00:00]} Qxe7 {[%emt 0:00:02]} 30. Nxd5 {[%emt 0:00:00]} Bxd5 {[%emt 0:00:37]} 31. Rxd5 {[%emt 0:00:00]} Rc8 {[%emt 0:01:07]} 32. h3 {[%emt 0:00:00]} Qf6 {[%emt 0:05:01]} 33. Rd4 {[%emt 0:00:00]} Re8 {[%emt 0:01:27]} 34. Qg4 {[%emt 0:00:00]} Kg7 {[%emt 0:00:57]} 35. a4 {[%emt 0:00:00]} Qe6 {[%emt 0:01:00]} 36. Qxh4 {[%emt 0:00:00]} Qxb3 {[%emt 0:00:19]} 37. Qf4 {[%emt 0:00:00]} Qe6 {[%emt 0:00:49]} 38. g4 {[%emt 0:00:33]} Qe5 {[%emt 0:01:31]} 39. Qxe5+ {[%emt 0:00:11]} Rxe5 {[%emt 0:00:03]} 40. Kg2 {[%emt 0:00:08]} g5 {[%emt 0:02:19]} 41. Kg3 {[%emt 0:00:10]} Kg6 {[%emt 0:00:44]} 42. h4 {[%emt 0:00:19]} gxh4+ {[%emt 0:00:13]} 43. Kxh4 {[%emt 0:00:12]} f6 {[%emt 0:02:22]} 44. Rb4 {[%emt 0:00:42]} Re6 {[%emt 0:00:38]} 45. Kg3 {[%emt 0:00:21]} f5 {[%emt 0:00:28]} 46. Kf4 {[%emt 0:04:00]} fxg4 {[%emt 0:00:17]} 47. Kxg4 {[%emt 0:00:06]} Rf6 {[%emt 0:00:27]} 48. Rxe4 {[%emt 0:00:07]} Rxf2 {[%emt 0:00:06]} 49. Re7 {[%emt 0:00:09]} a6 {[%emt 0:01:09]} 50. Re6+ {[%emt 0:00:33]} Rf6 {[%emt 0:00:12]} 51. Rxf6+ {[%emt 0:00:09]} 1/2-1/2

[Event "Torneo Benidorm Gran Hotel Bali 2022"]
[Site "Benidorm, Spain"]
[Date "2022.12.06"]
[Round "4.4"]
[White "Sos Andreu, Eric"]
[Black "Tscharotschkin, Michael"]
[Result "1/2-1/2"]
[ECO "A90"]
[WhiteElo "2364"]
[BlackElo "2137"]
[PlyCount "70"]
[EventDate "2022.12.03"]
[EventType "swiss"]
[EventRounds "9"]
[SourceTitle "Ajedrez en Madrid"]
[Source "lmi"]
[SourceDate "2022.12.03"]
[SourceVersion "1"]
[SourceVersionDate "2022.12.10"]
[SourceQuality "1"]
[TimeControl "90+30"]
[WhiteClock "0:19:27"]
[BlackClock "0:36:39"]

1. d4 {[%emt 0:00:00]} d5 {[%emt 0:00:00]} 2. c4 {[%emt 0:00:00]} e6 {[%emt 0:00:00]} 3. Nf3 {[%emt 0:00:00]} c6 {[%emt 0:00:00]} 4. g3 {[%emt 0:02:37]} Bd6 {[%emt 0:00:00]} 5. Bg2 {[%emt 0:00:40]} f5 {[%emt 0:00:00]} 6. O-O {[%emt 0:00:56]} Nf6 7. b3 {[%emt 0:00:00]} Qe7 {[%emt 0:00:00]} 8. Bb2 {[%emt 0:00:00]} O-O {[%emt 0:00:00]} 9. Nbd2 {[%emt 0:02:42]} Ne4 10. Ne5 {[%emt 0:00:00]} Nxd2 {[%emt 0:00:00]} 11. Qxd2 {[%emt 0:00:00]} Nd7 {[%emt 0:00:00]} 12. Nd3 {[%emt 0:00:00]} Nf6 {[%emt 0:00:00]} 13. f3 {[%emt 0:00:00]} Bd7 {[%emt 0:00:00]} 14. Bc3 {[%emt 0:00:00]} Be8 {[%emt 0:00:00]} 15. Kh1 {[%emt 0:00:00]} Bf7 {[%emt 0:00:00]} 16. Rab1 {[%emt 0:00:00]} Rad8 {[%emt 0:00:00]} 17. c5 {[%emt 0:00:00]} Bc7 {[%emt 0:00:00]} 18. Ba5 {[%emt 0:00:00]} Bxa5 {[%emt 0:00:00]} 19. Qxa5 {[%emt 0:00:00]} g5 {[%emt 0:00:00]} 20. Qd2 {[%emt 0:00:00]} h6 {[%emt 0:00:00]} 21. b4 {[%emt 0:00:00]} Nd7 {[%emt 0:00:00]} 22. Qe3 {[%emt 0:00:00]} Bg6 {[%emt 0:00:00]} 23. Rb3 {[%emt 0:00:00]} f4 {[%emt 0:00:00]} 24. gxf4 {[%emt 0:00:00]} Bxd3 {[%emt 0:00:00]} 25. Qxd3 {[%emt 0:00:00]} Rxf4 {[%emt 0:00:00]} 26. Qg6+ {[%emt 0:00:00]} Qg7 {[%emt 0:00:00]} 27. Qxe6+ {[%emt 0:00:00]} Kh8 {[%emt 0:00:00]} 28. e3 {[%emt 0:00:00]} Nf8 {[%emt 0:00:00]} 29. Qe5 {[%emt 0:00:00]} Qxe5 {[%emt 0:00:00]} 30. dxe5 {[%emt 0:00:00]} Rf5 {[%emt 0:00:00]} 31. f4 {[%emt 0:00:00]} gxf4 {[%emt 0:00:00]} 32. exf4 {[%emt 0:00:00]} Ng6 {[%emt 0:00:00]} 33. Rbf3 {[%emt 0:00:00]} Rdf8 {[%emt 0:00:00]} 34. Bh3 {[%emt 0:00:00]} Nxe5 {[%emt 0:00:00]} 35. Bxf5 {[%emt 0:00:00]} Nxf3 {[%emt 0:00:00]} 1/2-1/2

[Event "Torneo Benidorm Gran Hotel Bali 2022"]
[Site "Benidorm, Spain"]
[Date "2022.12.06"]
[Round "4.5"]
[White "Yuste Valenzuela, Alejandro"]
[Black "Md, Imran"]
[Result "0-1"]
[ECO "B38"]
[WhiteElo "2089"]
[BlackElo "2279"]
[PlyCount "66"]
[EventDate "2022.12.03"]
[EventType "swiss"]
[EventRounds "9"]
[SourceTitle "Ajedrez en Madrid"]
[Source "lmi"]
[SourceDate "2022.12.03"]
[SourceVersion "1"]
[SourceVersionDate "2022.12.10"]
[SourceQuality "1"]
[TimeControl "90+30"]
[WhiteClock "0:15:24"]
[BlackClock "0:56:18"]

1. e4 {[%emt 0:00:00]} c5 {[%emt 0:00:00]} 2. Nf3 {[%emt 0:00:00]} Nc6 {[%emt 0:00:00]} 3. d4 {[%emt 0:00:00]} cxd4 {[%emt 0:00:00]} 4. Nxd4 {[%emt 0:00:00]} g6 {[%emt 0:00:00]} 5. c4 {[%emt 0:00:00]} Bg7 {[%emt 0:00:00]} 6. Be3 {[%emt 0:00:00]} Qb6 {[%emt 0:00:00]} 7. Nb5 {[%emt 0:00:00]} Qd8 {[%emt 0:00:00]} 8. N1c3 {[%emt 0:00:00]} Nf6 {[%emt 0:00:00]} 9. Be2 {[%emt 0:00:00]} O-O {[%emt 0:00:00]} 10. Qd2 {[%emt 0:00:00]} d6 {[%emt 0:00:00]} 11. Rc1 {[%emt 0:00:00]} Nd7 {[%emt 0:00:00]} 12. O-O {[%emt 0:00:00]} Nc5 {[%emt 0:00:00]} 13. f4 {[%emt 0:00:00]} a6 {[%emt 0:00:00]} 14. Nd4 {[%emt 0:00:00]} Qa5 {[%emt 0:00:00]} 15. Bf3 {[%emt 0:00:00]} Nxd4 {[%emt 0:00:00]} 16. Bxd4 {[%emt 0:00:00]} e5 {[%emt 0:00:00]} 17. Be3 {[%emt 0:00:00]} exf4 {[%emt 0:00:00]} 18. Bxf4 {[%emt 0:00:00]} Be6 {[%emt 0:00:00]} 19. b3 {[%emt 0:00:00]} b5 {[%emt 0:00:00]} 20. Bh6 {[%emt 0:00:00]} Bxh6 {[%emt 0:00:00]} 21. Qxh6 {[%emt 0:00:00]} b4 {[%emt 0:00:00]} 22. Ne2 {[%emt 0:00:00]} Qxa2 {[%emt 0:00:00]} 23. e5 {[%emt 0:00:00]} Rad8 {[%emt 0:00:00]} 24. Ng3 {[%emt 0:00:00]} Qb2 {[%emt 0:00:00]} 25. Rce1 {[%emt 0:00:00]} dxe5 {[%emt 0:00:00]} 26. Bd5 {[%emt 0:00:00]} f6 {[%emt 0:00:00]} 27. Rf3 {[%emt 0:00:00]} Qd4+ {[%emt 0:00:00]} 28. Kh1 {[%emt 0:00:00]} Bxd5 {[%emt 0:00:00]} 29. Nf5 {[%emt 0:00:00]} gxf5 {[%emt 0:00:00]} 30. Rg3+ {[%emt 0:00:00]} Kf7 {[%emt 0:00:00]} 31. Qxh7+ {[%emt 0:00:00]} Ke8 {[%emt 0:00:00]} 32. Qg6+ {[%emt 0:02:32]} Bf7 {[%emt 0:00:00]} 33. Qxf6 {[%emt 0:00:04]} Ne4 {[%emt 0:00:00]} 0-1

[Event "Torneo Benidorm Gran Hotel Bali 2022"]
[Site "Benidorm, Spain"]
[Date "2022.12.06"]
[Round "4.6"]
[White "Korneev, Oleg"]
[Black "Barbera Estelles, Rosendo"]
[Result "1-0"]
[ECO "C54"]
[WhiteElo "2481"]
[BlackElo "2137"]
[PlyCount "91"]
[EventDate "2022.12.03"]
[EventType "swiss"]
[EventRounds "9"]
[SourceTitle "Ajedrez en Madrid"]
[Source "lmi"]
[SourceDate "2022.12.03"]
[SourceVersion "1"]
[SourceVersionDate "2022.12.10"]
[SourceQuality "1"]
[TimeControl "90+30"]
[WhiteClock "0:10:20"]
[BlackClock "0:00:49"]

1. e4 {[%emt 0:00:00]} e5 {[%emt 0:00:00]} 2. Nf3 {[%emt 0:00:00]} Nc6 {[%emt 0:00:00]} 3. Bc4 {[%emt 0:00:00]} Nf6 {[%emt 0:00:00]} 4. d3 {[%emt 0:00:00]} Bc5 {[%emt 0:00:00]} 5. O-O {[%emt 0:00:00]} O-O {[%emt 0:00:00]} 6. Nbd2 {[%emt 0:00:00]} d6 {[%emt 0:00:00]} 7. c3 {[%emt 0:00:00]} a6 {[%emt 0:00:00]} 8. Bb3 {[%emt 0:00:00]} h6 {[%emt 0:00:00]} 9. Re1 {[%emt 0:00:00]} Re8 {[%emt 0:00:00]} 10. Nf1 {[%emt 0:00:00]} Ba7 {[%emt 0:00:00]} 11. Ng3 {[%emt 0:00:00]} Be6 {[%emt 0:00:00]} 12. d4 {[%emt 0:00:00]} Bxb3 {[%emt 0:00:00]} 13. axb3 {[%emt 0:00:00]} d5 {[%emt 0:00:00]} 14. Nxe5 {[%emt 0:00:00]} Nxe5 {[%emt 0:00:00]} 15. dxe5 {[%emt 0:00:00]} Rxe5 {[%emt 0:00:00]} 16. Bf4 {[%emt 0:00:00]} Re6 {[%emt 0:00:00]} 17. e5 {[%emt 0:00:00]} Nh7 {[%emt 0:00:00]} 18. b4 {[%emt 0:00:00]} c6 {[%emt 0:00:00]} 19. Qh5 {[%emt 0:00:00]} Qd7 {[%emt 0:00:00]} 20. Nf5 {[%emt 0:00:00]} Nf8 {[%emt 0:00:00]} 21. Be3 {[%emt 0:00:00]} Bxe3 {[%emt 0:00:00]} 22. Rxe3 {[%emt 0:00:00]} Rg6 {[%emt 0:00:19]} 23. f4 {[%emt 0:00:00]} Re8 {[%emt 0:04:55]} 24. h3 {[%emt 0:00:00]} Ne6 {[%emt 0:02:28]} 25. Qf3 {[%emt 0:00:00]} Nf8 {[%emt 0:03:00]} 26. Nd4 {[%emt 0:00:00]} Ne6 {[%emt 0:00:46]} 27. Nf5 {[%emt 0:00:18]} Nf8 {[%emt 0:00:28]} 28. Nd6 {[%emt 0:02:23]} Rxd6 {[%emt 0:00:31]} 29. exd6 {[%emt 0:00:01]} Rxe3 {[%emt 0:00:20]} 30. Qxe3 {[%emt 0:00:02]} Qxd6 {[%emt 0:00:14]} 31. Re1 {[%emt 0:00:04]} Ne6 {[%emt 0:00:55]} 32. Qe5 {[%emt 0:04:09]} Qxe5 {[%emt 0:01:10]} 33. Rxe5 {[%emt 0:00:04]} Kf8 {[%emt 0:00:48]} 34. g3 {[%emt 0:00:04]} Nc7 {[%emt 0:00:29]} 35. Kf2 {[%emt 0:00:23]} Nb5 {[%emt 0:00:40]} 36. Re2 {[%emt 0:01:17]} Nd6 {[%emt 0:00:18]} 37. g4 {[%emt 0:00:27]} Ne4+ {[%emt 0:00:23]} 38. Ke3 {[%emt 0:00:37]} Ke7 {[%emt 0:00:34]} 39. Kd4 {[%emt 0:00:21]} Kd6 {[%emt 0:00:21]} 40. c4 {[%emt 0:00:31]} Nf6 {[%emt 0:00:24]} 41. b3 {[%emt 0:00:36]} Ne4 {[%emt 0:01:47]} 42. cxd5 {[%emt 0:01:12]} cxd5 {[%emt 0:00:11]} 43. Rc2 {[%emt 0:00:05]} f5 {[%emt 0:01:25]} 44. Rc8 {[%emt 0:00:52]} fxg4 {[%emt 0:00:28]} 45. hxg4 {[%emt 0:00:03]} Nf2 {[%emt 0:00:17]} 46. Rg8 {[%emt 0:00:41]} 1-0

[Event "Torneo Benidorm Gran Hotel Bali 2022"]
[Site "Benidorm, Spain"]
[Date "2022.12.06"]
[Round "4.7"]
[White "Millaret Lores, Francesc"]
[Black "Pallardo Lozoya, Jose Vicente"]
[Result "0-1"]
[ECO "B67"]
[WhiteElo "2133"]
[BlackElo "2367"]
[PlyCount "84"]
[EventDate "2022.12.03"]
[EventType "swiss"]
[EventRounds "9"]
[SourceTitle "Ajedrez en Madrid"]
[Source "lmi"]
[SourceDate "2022.12.03"]
[SourceVersion "1"]
[SourceVersionDate "2022.12.10"]
[SourceQuality "1"]
[TimeControl "90+30"]
[WhiteClock "0:04:28"]
[BlackClock "0:02:28"]

1. e4 {[%emt 0:00:00]} c5 {[%emt 0:00:00]} 2. Nf3 {[%emt 0:00:00]} Nc6 {[%emt 0:00:00]} 3. d4 {[%emt 0:00:00]} cxd4 {[%emt 0:00:00]} 4. Nxd4 {[%emt 0:00:00]} Nf6 {[%emt 0:00:00]} 5. Nc3 {[%emt 0:00:00]} d6 {[%emt 0:00:00]} 6. Bg5 {[%emt 0:00:00]} e6 {[%emt 0:00:00]} 7. Qd2 {[%emt 0:00:00]} a6 {[%emt 0:00:00]} 8. O-O-O {[%emt 0:00:00]} Bd7 {[%emt 0:00:00]} 9. Kb1 {[%emt 0:00:00]} Rc8 {[%emt 0:20:26]} 10. f4 h6 11. Bh4 Nxe4 12. Nxe4 Qxh4 {[%emt 0:00:00]} 13. Nf3 {[%emt 0:00:00]} Qe7 {[%emt 0:00:00]} 14. Nxd6+ {[%emt 0:00:00]} Qxd6 {[%emt 0:00:00]} 15. Qxd6 {[%emt 0:00:00]} Bxd6 {[%emt 0:00:00]} 16. Rxd6 {[%emt 0:00:00]} Ke7 {[%emt 0:00:00]} 17. Rd2 {[%emt 0:00:00]} Rhd8 {[%emt 0:00:00]} 18. Be2 {[%emt 0:00:00]} Be8 {[%emt 0:00:00]} 19. Rhd1 {[%emt 0:00:00]} Rxd2 {[%emt 0:00:00]} 20. Rxd2 {[%emt 0:00:00]} f6 {[%emt 0:00:00]} 21. Ne1 {[%emt 0:00:00]} g5 {[%emt 0:00:00]} 22. fxg5 {[%emt 0:00:00]} hxg5 {[%emt 0:00:00]} 23. Bf3 {[%emt 0:00:00]} Rc7 {[%emt 0:00:00]} 24. Bxc6 {[%emt 0:00:00]} Bxc6 {[%emt 0:00:00]} 25. b3 {[%emt 0:00:00]} f5 {[%emt 0:00:00]} 26. Kb2 {[%emt 0:00:00]} Be4 {[%emt 0:00:00]} 27. a4 {[%emt 0:01:04]} g4 {[%emt 0:00:00]} 28. a5 {[%emt 0:01:37]} Kf6 {[%emt 0:00:00]} 29. c4 {[%emt 0:00:42]} Rc5 {[%emt 0:00:00]} 30. Nd3 {[%emt 0:03:04]} Bxd3 {[%emt 0:00:00]} 31. Rxd3 {[%emt 0:00:07]} Rxa5 {[%emt 0:00:00]} 32. Rd7 {[%emt 0:00:35]} f4 {[%emt 0:00:00]} 33. Rxb7 {[%emt 0:05:10]} f3 {[%emt 0:00:00]} 34. gxf3 {[%emt 0:00:02]} gxf3 {[%emt 0:00:00]} 35. Rd7 {[%emt 0:00:08]} Rf5 {[%emt 0:00:00]} 36. Rd1 {[%emt 0:00:06]} Ke5 {[%emt 0:00:00]} 37. c5 {[%emt 0:01:41]} f2 {[%emt 0:00:00]} 38. Rf1 {[%emt 0:00:04]} Ke4 {[%emt 0:00:00]} 39. c6 {[%emt 0:00:47]} Ke3 {[%emt 0:00:00]} 40. b4 {[%emt 0:00:48]} Rf8 {[%emt 0:02:54]} 41. c7 {[%emt 0:00:30]} Rc8 {[%emt 0:00:00]} 42. Rc1 {[%emt 0:01:37]} Rxc7 {[%emt 0:00:00]} 0-1